fUSD/lending_fUSD_20241122
["ID","MTS","AMOUNT","RATE_DAILY","PERIOD"]
[343035330,1732300243297,-501.98014259,0.00082191,120]
[343035331,1732300243307,-500.0,0.00082191,120]
[343035332,1732300243316,-501.59235744,0.00082191,120]
[343035333,1732300243326,-518.40187039,0.00082191,120]
[343035334,1732300243335,-500.0,0.00082191,120]
[343035335,1732300243344,-500.0,0.00082191,120]
[343035336,1732300243354,-578.6121257,0.00082191,120]
[343035337,1732300243363,-543.08966139,0.00082191,120]
[343035338,1732300243372,-503.88686594,0.00082191,120]
[343035339,1732300243382,-500.0,0.00082191,120]
[343035340,1732300243391,-500.0,0.00082191,120]
[343035341,1732300243400,-500.0,0.00082191,120]
[343035342,1732300243410,-507.54735519,0.00082191,120]
[343035343,1732300243419,-500.0,0.00082191,120]
[343035344,1732300243429,-500.0,0.00082191,120]
[343035345,1732300243438,-507.71167464,0.00082191,120]
[343035346,1732300243447,-525.11056648,0.00082191,120]
[343035347,1732300243457,-500.0,0.00082191,120]
[343035348,1732300243466,-580.39094935,0.00082191,120]
[343035349,1732300243475,-500.36801809,0.00082191,120]
[343035350,1732300243484,-500.0,0.00082191,120]
[343035351,1732300243492,-509.02116836,0.00082191,120]
[343035352,1732300243503,-504.42616765,0.00082191,120]
[343035353,1732300243512,-505.03199372,0.00082191,120]
[343035354,1732300243521,-507.46865479,0.00082191,120]
[343035355,1732300243531,-503.46809376,0.00082191,120]
[343035356,1732300243540,-500.0,0.00082191,120]
[343035357,1732300243549,-503.07925501,0.00082191,120]
[343035358,1732300243558,-505.27928321,0.00082191,120]
[343035359,1732300243567,-502.96121675,0.00082191,120]
[343035360,1732300243576,-505.53522799,0.00082191,120]
[343035361,1732300243586,-506.31255546,0.00082191,120]
[343035362,1732300243595,-500.0,0.00082191,120]
[343035363,1732300243605,-577.36978851,0.00082191,120]
[343035364,1732300243614,-642.20920099,0.00082191,120]
[343035365,1732300243623,-503.81818642,0.00082191,120]
[343035367,1732300243633,-500.0,0.00082191,120]
[343035369,1732300243642,-503.42579952,0.00082191,120]
[343035371,1732300243652,-537.18045045,0.00082191,120]
[343035372,1732300243662,-502.98690532,0.00082191,120]
[343035374,1732300243672,-508.50280446,0.00082191,120]
[343035376,1732300243681,-500.0,0.00082191,120]
[343035377,1732300243691,-502.24663378,0.00082191,120]
[343035379,1732300243700,-500.0,0.00082191,120]
[343035380,1732300243710,-505.35822504,0.00082191,120]
[343035381,1732300243720,-500.0,0.00082191,120]
[343035382,1732300243730,-514.08701237,0.00082191,120]
[343035383,1732300243739,-501.54470282,0.00082191,120]
[343035384,1732300243749,-504.53123748,0.00082191,120]
[343035385,1732300243761,-348.04214769,0.00082191,120]
[343035386,1732300243771,-500.0,0.00082191,120]
[343035387,1732300243780,-500.0,0.00082191,120]
[343035388,1732300243789,-500.0,0.00082191,120]
[343035389,1732300243798,-500.0,0.00082191,120]
[343035390,1732300243807,-503.82059748,0.00082191,120]
[343035391,1732300243815,-500.0,0.00082191,120]
[343035392,1732300243824,-502.39812306,0.00082191,120]
[343035393,1732300243833,-500.0,0.00082191,120]
[343035394,1732300243842,-534.75200447,0.00082191,120]
[343035395,1732300243851,-295.86853878,0.00082191,120]
[343035396,1732300243861,-500.0,0.00082191,120]
[343035397,1732300243870,-514.1748558,0.00082191,120]
[343035398,1732300243879,-500.0,0.00082191,120]
[343035399,1732300243890,-507.51447054,0.00082191,120]
[343035400,1732300243901,-500.0,0.00082191,120]
[343035401,1732300243910,-501.6583639,0.00082191,120]
[343035402,1732300243920,-500.0,0.00082191,120]
[343035403,1732300243930,-539.81748646,0.00082191,120]
[343035404,1732300243940,-503.55835629,0.00082191,120]
[343035405,1732300243949,-500.0,0.00082191,120]
[343035406,1732300243958,-200.0,0.00082191,7]
[343035407,1732300243969,-503.96827071,0.00082191,120]
[343035408,1732300243978,-500.0,0.00082191,120]
[343035409,1732300243987,-563.29975677,0.00082191,120]
[343035410,1732300243996,-500.0,0.00082191,120]
[343035411,1732300244009,-500.0,0.00082191,120]
[343035412,1732300244018,-500.0,0.00082191,120]
[343035413,1732300244028,-500.0,0.00082191,120]
[343035414,1732300244037,-500.0,0.00082191,120]
[343035415,1732300244047,-500.0,0.00082191,120]
[343035416,1732300244057,-500.0,0.00082191,120]
[343035417,1732300244068,-500.0,0.00082191,120]
[343035418,1732300244078,-500.0,0.00082191,120]
[343035419,1732300244089,-583.94645257,0.00082191,120]
[343035420,1732300244098,-500.0,0.00082191,120]
[343035421,1732300244108,-500.0,0.00082191,120]
[343035422,1732300244117,-500.0,0.00082191,120]
[343035423,1732300244127,-500.93641935,0.00082191,120]
[343035424,1732300244137,-500.0,0.00082191,120]
[343035425,1732300244147,-500.0,0.00082191,120]
[343035426,1732300244157,-500.0,0.00082191,120]
[343035427,1732300244167,-500.0,0.00082191,120]
[343035428,1732300244176,-501.53284687,0.00082191,120]
[343035429,1732300244185,-501.37574795,0.00082191,120]
[343035430,1732300244195,-500.0,0.00082191,120]
[343035431,1732300244204,-500.0,0.00082191,120]
[343035432,1732300244213,-504.24298639,0.00082191,120]
[343035433,1732300244222,-500.0,0.00082191,120]
[343035434,1732300244231,-500.0,0.00082191,120]
[343035435,1732300244241,-502.38295002,0.00082191,120]
[343035436,1732300244252,-500.0,0.00082191,120]
[343035437,1732300244262,-500.0,0.00082191,120]
[343035438,1732300244272,-500.0,0.00082191,120]
[343035439,1732300244282,-500.0,0.00082191,120]
[343035440,1732300244292,-500.0,0.00082191,120]
[343035441,1732300244301,-500.74412022,0.00082191,120]
[343035442,1732300244310,-500.0,0.00082191,120]
[343035443,1732300244320,-500.0,0.00082191,120]
[343035444,1732300244330,-500.0,0.00082191,120]
[343035445,1732300244339,-500.0,0.00082191,120]
[343035446,1732300244348,-500.0,0.00082191,120]
[343035447,1732300244357,-501.52297953,0.00082191,30]
[343035448,1732300244367,-2000.0,0.00082191,30]
[343035449,1732300244376,-500.0,0.00082191,120]
[343035450,1732300244385,-500.0,0.00082191,120]
[343035451,1732300244394,-502.66512614,0.00082191,120]
[343035452,1732300244403,-500.0,0.00082191,120]
[343035453,1732300244412,-500.0,0.00082191,120]
[343035454,1732300244421,-501.28882635,0.00082191,120]
[343035455,1732300244430,-500.0,0.00082191,120]
[343035456,1732300244439,-500.0,0.00082191,120]
[343035457,1732300244448,-500.0,0.00082191,120]
[343035458,1732300244457,-500.0,0.00082191,120]
[343035459,1732300244467,-500.0,0.00082191,120]
[343035460,1732300244475,-500.0,0.00082191,120]
[343035461,1732300244484,-500.0,0.00082191,120]
[343035462,1732300244494,-500.0,0.00082191,120]
[343035463,1732300244506,-500.0,0.00082191,120]
[343035464,1732300244514,-500.0,0.00082191,120]
[343035465,1732300244523,-500.0,0.00082191,120]
[343035466,1732300244530,-500.0,0.00082191,120]
[343035467,1732300244539,-502.54930809,0.00082191,120]
[343035468,1732300244548,-500.0,0.00082191,120]
[343035469,1732300244556,-500.0,0.00082191,120]
[343035470,1732300244565,-500.0,0.00082191,120]
[343035471,1732300244573,-500.0,0.00082191,120]
[343035472,1732300244582,-500.0,0.00082191,120]
[343035473,1732300244590,-500.0,0.00082191,120]
[343035474,1732300244599,-500.0,0.00082191,120]
[343035475,1732300244607,-500.0,0.00082191,120]
[343035476,1732300244617,-500.0,0.00082191,120]
[343035477,1732300244626,-500.0,0.00082191,120]
[343035478,1732300244635,-188.29234151,0.00082191,120]
[343035479,1732300244642,-500.0,0.00082191,120]
[343035480,1732300244650,-500.0,0.00082191,2]
[343035481,1732300244657,-503.02587177,0.00082191,120]
[343035482,1732300244663,-500.0,0.00082191,120]
[343035483,1732300244669,-500.0,0.00082191,120]
[343035484,1732300244677,-500.0,0.00082191,120]
[343035485,1732300244685,-500.0,0.00082191,120]
[343035486,1732300244693,-466.16841378,0.00082191,120]
[343035487,1732300244702,-500.0,0.00082191,120]
[343035488,1732300244711,-2062.11,0.00082191,120]
[343035489,1732300244721,-2062.11,0.00082191,120]
[343035490,1732300244731,-2062.11,0.00082191,120]
[343035491,1732300244741,-500.0,0.00082191,120]
[343035492,1732300244751,-501.37247117,0.00082191,120]
[343035493,1732300244763,-500.0,0.00082191,120]
[343035494,1732300244772,-502.30073848,0.00082191,120]
[343035495,1732300244782,-500.0,0.00082191,120]
[343035496,1732300244792,-500.0,0.00082191,120]
[343035497,1732300244801,-500.0,0.00082191,120]
[343035498,1732300244810,-500.0,0.00082191,120]
[343035499,1732300244819,-500.0,0.00082191,120]
[343035500,1732300244828,-500.0,0.00082191,120]
[343035501,1732300244838,-500.0,0.00082191,120]
[343035502,1732300244848,-500.0,0.00082191,120]
[343035503,1732300244858,-500.0,0.00082191,120]
[343035504,1732300244867,-500.0,0.00082191,120]
[343035505,1732300244877,-500.0,0.00082191,120]
[343035506,1732300244889,-500.0,0.00082191,120]
[343035507,1732300244904,-500.0,0.00082191,120]
[343035508,1732300244914,-500.0,0.00082191,120]
[343035509,1732300244924,-500.0,0.00082191,120]
[343035510,1732300244935,-510.27201946,0.00082191,120]
[343035511,1732300244945,-500.0,0.00082191,120]
[343035512,1732300244955,-500.0,0.00082191,120]
[343035513,1732300244965,-500.0,0.00082191,120]
[343035514,1732300244977,-500.0,0.00082191,120]
[343035515,1732300244987,-502.16772067,0.00082191,120]
[343035516,1732300244997,-502.02808471,0.00082191,120]
[343035517,1732300245009,-500.0,0.00082191,120]
[343035518,1732300245019,-500.0,0.00082191,120]
[343035519,1732300245028,-500.8934927,0.00082191,120]
[343035520,1732300245038,-500.0,0.00082191,120]
[343035521,1732300245047,-500.0,0.00082191,120]
[343035522,1732300245057,-500.0,0.00082191,120]
[343035523,1732300245067,-500.0,0.00082191,120]
[343035524,1732300245076,-500.0,0.00082191,120]
[343035525,1732300245086,-501.75850346,0.00082191,120]
[343035526,1732300245096,-500.0,0.00082191,120]
[343035527,1732300245106,-500.0,0.00082191,120]
[343035528,1732300245116,-500.0,0.00082191,120]
[343035529,1732300245126,-500.0,0.00082191,120]
[343035530,1732300245135,-500.0,0.00082191,120]
[343035531,1732300245145,-500.0,0.00082191,120]
[343035532,1732300245155,-500.0,0.00082191,120]
[343035533,1732300245164,-500.0,0.00082191,120]
[343035534,1732300245174,-500.0,0.00082191,120]
[343035535,1732300245183,-501.89321919,0.00082191,120]
[343035536,1732300245192,-502.04521718,0.00082191,120]
[343035537,1732300245202,-500.56938555,0.00082191,120]
[343035538,1732300245211,-500.0,0.00082191,120]
[343035539,1732300245221,-500.0,0.00082191,120]
[343035540,1732300245231,-500.0,0.00082191,120]
[343035541,1732300245240,-500.0,0.00082191,120]
[343035542,1732300245249,-500.0,0.00082191,120]
[343035543,1732300245261,-502.56279196,0.00082191,120]
[343035544,1732300245271,-633.44784062,0.00082191,120]
[343035545,1732300245281,-500.0,0.00082191,120]
[343035546,1732300245290,-500.0,0.00082191,120]
[343035547,1732300245299,-500.0,0.00082191,120]
[343035548,1732300245309,-500.0,0.00082191,120]
[343035549,1732300245414,-500.0,0.00082191,120]
[343035550,1732300245424,-500.0,0.00082191,120]
[343035551,1732300245434,-500.0,0.00082191,120]
[343035552,1732300245444,-500.0,0.00082191,120]
[343035553,1732300245454,-526.62244029,0.00082191,120]
[343035554,1732300245463,-500.0,0.00082191,120]
[343035555,1732300245473,-500.0,0.00082191,120]
[343035556,1732300245483,-530.97297945,0.00082191,120]
[343035557,1732300245493,-500.0,0.00082191,120]
[343035558,1732300245505,-500.0,0.00082191,120]
[343035559,1732300245515,-500.0,0.00082191,120]
[343035560,1732300245525,-500.0,0.00082191,120]
[343035561,1732300245536,-500.0,0.00082191,120]
[343035562,1732300245547,-500.0,0.00082191,120]
[343035563,1732300245558,-500.0,0.00082191,120]
[343035564,1732300245569,-578.29291708,0.00082191,120]
[343035565,1732300245581,-500.0,0.00082191,120]
[343035566,1732300245591,-500.0,0.00082191,120]
[343035567,1732300245602,-500.0,0.00082191,120]
[343035568,1732300245613,-341.72647901,0.00082191,120]
[343035569,1732300245624,-500.0,0.00082191,120]
[343035570,1732300245637,-501.23791183,0.00082191,120]
[343035571,1732300245649,-500.0,0.00082191,120]
[343035572,1732300245660,-500.0,0.00082191,120]
[343035573,1732300245671,-500.0,0.00082191,120]
[343035574,1732300245681,-500.0,0.00082191,120]
[343035575,1732300245692,-500.0,0.00082191,120]
[343035576,1732300245703,-500.0,0.00082191,120]
[343035577,1732300245714,-500.0,0.00082191,120]
[343035578,1732300245725,-500.0,0.00082191,120]
[343035579,1732300245737,-500.0,0.00082191,120]
[343035580,1732300245747,-503.7408131,0.00082191,120]
[343035581,1732300245761,-500.89783699,0.00082191,120]
[343035582,1732300245772,-500.0,0.00082191,120]
[343035583,1732300245783,-207.61301228,0.00082191,120]
[343035584,1732300245793,-500.0,0.00082191,120]
[343035585,1732300245803,-500.0,0.00082191,120]
[343035587,1732300245813,-500.0,0.00082191,120]
[343035589,1732300245822,-500.0,0.00082191,120]
[343035590,1732300245831,-548.82478087,0.00082191,120]
[343035591,1732300245840,-505.11449621,0.00082191,120]
[343035592,1732300245850,-503.65778431,0.00082191,120]
[343035593,1732300245859,-500.0,0.00082191,120]
[343035594,1732300245868,-500.0,0.00082191,120]
[343035595,1732300245877,-501.68519415,0.00082191,120]
[343035596,1732300245890,-500.0,0.00082191,120]
[343035597,1732300245899,-542.99781141,0.00082191,120]
[343035598,1732300245908,-503.53493982,0.00082191,120]
[343035599,1732300245918,-500.0,0.00082191,120]
[343035600,1732300245927,-500.0,0.00082191,120]
[343035601,1732300245937,-500.0,0.00082191,120]
[343035602,1732300245946,-500.0,0.00082191,120]
[343035603,1732300245955,-500.0,0.00082191,120]
[343035604,1732300245964,-500.0,0.00082191,120]
[343035605,1732300245974,-500.0,0.00082191,120]
[343035606,1732300245983,-500.0,0.00082191,120]
[343035607,1732300245992,-500.0,0.00082191,120]
[343035608,1732300246001,-500.0,0.00082191,120]
[343035609,1732300246014,-501.84334347,0.00082191,120]
[343035610,1732300246024,-500.0,0.00082191,120]
[343035611,1732300246034,-500.0,0.00082191,120]
[343035612,1732300246044,-501.03857681,0.00082191,120]
[343035613,1732300246054,-544.81760143,0.00082191,120]
[343035614,1732300246064,-500.0,0.00082191,120]
[343035615,1732300246075,-225.84107852,0.00082191,120]
[343035616,1732300246085,-500.0,0.00082191,120]
[343035617,1732300246094,-500.0,0.00082191,120]
[343035618,1732300246106,-501.5204496,0.00082191,120]
[343035619,1732300246117,-1856.73,0.00082191,120]
[343035620,1732300246127,-1856.73,0.00082191,120]
[343035621,1732300246137,-1856.73,0.00082191,120]
[343035622,1732300246148,-500.0,0.00082191,120]
[343035623,1732300246158,-500.0,0.00082191,120]
[343035624,1732300246169,-501.49684332,0.00082191,120]
[343035625,1732300246180,-555.97756873,0.00082191,120]
[343035626,1732300246190,-500.87458057,0.00082191,120]
[343035627,1732300246200,-500.0,0.00082191,120]
[343035628,1732300246210,-500.0,0.00082191,120]
[343035629,1732300246220,-379.23106796,0.00082191,120]
[343035631,1732300246230,-500.0,0.00082191,120]
[343035633,1732300246239,-500.0,0.00082191,120]
[343035635,1732300246250,-500.0,0.00082191,120]
[343035636,1732300246262,-678.51,0.00082191,120]
[343035637,1732300246272,-514.93588491,0.00082191,120]
[343035638,1732300246282,-501.95159708,0.00082191,120]
[343035639,1732300246291,-500.0,0.00082191,120]
[343035640,1732300246301,-500.0,0.00082191,120]
[343035641,1732300246311,-189.82791388,0.00082191,120]
[343035642,1732300246320,-500.0,0.00082191,120]
[343035643,1732300246330,-500.0,0.00082191,120]
[343035644,1732300246339,-500.0,0.00082191,120]
[343035645,1732300246349,-500.0,0.00082191,120]
[343035646,1732300246358,-500.0,0.00082191,120]
[343035647,1732300246367,-500.84193267,0.00082191,120]
[343035648,1732300246377,-500.0,0.00082191,120]
[343035649,1732300246387,-500.0,0.00082191,120]
[343035650,1732300246397,-500.0,0.00082191,120]
[343035651,1732300246407,-502.05949618,0.00082191,120]
[343035652,1732300246417,-500.0,0.00082191,120]
[343035653,1732300246428,-500.0,0.00082191,120]
[343035654,1732300246438,-500.0,0.00082191,120]
[343035655,1732300246448,-500.0,0.00082191,120]
[343035656,1732300246457,-500.0,0.00082191,120]
[343035657,1732300246467,-501.05292729,0.00082191,120]
[343035658,1732300246476,-185.93,0.00082191,120]
[343035659,1732300246486,-500.0,0.00082191,120]
[343035660,1732300246495,-500.0,0.00082191,120]
[343035661,1732300246507,-1372.09,0.00082191,120]
[343035662,1732300246516,-501.07358628,0.00082191,120]
[343035663,1732300246526,-502.81170484,0.00082191,120]
[343035664,1732300246535,-500.0,0.00082191,120]
[343035665,1732300246544,-500.0,0.00082191,120]
[343035666,1732300246554,-1196.07,0.00082191,120]
[343035667,1732300246563,-1196.07,0.00082191,120]
[343035668,1732300246572,-500.0,0.00082191,120]
[343035669,1732300246581,-1196.07,0.00082191,120]
[343035670,1732300246590,-500.0,0.00082191,120]
[343035671,1732300246600,-502.16823041,0.00082191,120]
[343035672,1732300246609,-501.11416506,0.00082191,120]
[343035673,1732300246618,-500.0,0.00082191,120]
[343035674,1732300246628,-500.0,0.00082191,120]
[343035675,1732300246637,-501.83932195,0.00082191,120]
[343035676,1732300246646,-500.0,0.00082191,120]
[343035677,1732300246655,-500.0,0.00082191,120]
[343035678,1732300246664,-501.18534414,0.00082191,120]
[343035679,1732300246673,-500.0,0.00082191,120]
[343035680,1732300246684,-500.0,0.00082191,120]
[343035681,1732300246693,-501.75959545,0.00082191,120]
[343035682,1732300246702,-500.0,0.00082191,120]
[343035683,1732300246711,-500.0,0.00082191,120]
[343035684,1732300246720,-501.82653575,0.00082191,120]
[343035685,1732300246729,-500.0,0.00082191,120]
[343035686,1732300246738,-500.0,0.00082191,120]
[343035687,1732300246748,-505.00873855,0.00082341,60]
[343035688,1732300246761,-500.0,0.00082387,120]
[343035689,1732300246770,-2062.11,0.00082387,120]
[343035690,1732300246779,-489.42,0.00082387,120]
[343035691,1732300246788,-500.0,0.00082387,120]
[343035692,1732300246797,-500.0,0.00082387,120]
[343035693,1732300246807,-500.0,0.00082387,120]
[343035694,1732300246817,-500.0,0.00082387,120]
[343035695,1732300246826,-528.50487506,0.00082387,120]
[343035696,1732300246836,-504.75203431,0.00082387,120]
[343035697,1732300246845,-500.0,0.00082387,120]
[343035698,1732300246854,-500.0,0.00082387,120]
[343035699,1732300246863,-274.05047136,0.00082387,120]
[343035700,1732300246872,-500.0,0.00082387,120]
[343035701,1732300246882,-500.0,0.00082387,120]
[343035702,1732300246891,-500.0,0.00082387,120]
[343035703,1732300246901,-500.0,0.00082387,120]
[343035704,1732300246911,-1856.73,0.00082387,120]
[343035705,1732300246920,-387.72,0.00082387,120]
[343035706,1732300246930,-191.88,0.00082387,120]
[343035707,1732300246939,-1196.07,0.00082387,120]
[343035708,1732300246950,-168.0,0.00082387,120]
[343035709,1732300246959,-500.0,0.00082387,120]
[343035710,1732300246968,-500.0,0.00082387,120]
[343035711,1732300246981,-500.0,0.00082387,120]
[343035712,1732300246991,-545.32640197,0.00082387,120]
[343035713,1732300247001,-562.64315905,0.00082387,120]
[343035714,1732300247012,-561.76,0.00082387,120]
[343035715,1732300247022,-500.0,0.00082387,120]
[343035716,1732300247031,-500.0,0.00082387,120]
[343035717,1732300247041,-500.0,0.00082387,120]
[343035718,1732300247051,-370.60885748,0.00082387,120]
[343035719,1732300247060,-500.0,0.00082387,120]
[343035720,1732300247070,-500.0,0.00082387,120]
[343035721,1732300247079,-2145.04,0.00082387,120]
[343035722,1732300247088,-500.0,0.00082387,120]
[343035723,1732300247098,-916.84,0.00082387,120]
[343035724,1732300247108,-226.46,0.00082387,120]
[343035725,1732300247117,-500.0,0.00082387,2]
[343035726,1732300247126,-557.66,0.00082387,120]
[343035727,1732300247135,-500.0,0.00082387,120]
[343035728,1732300247145,-500.0,0.00082387,120]
[343035729,1732300247155,-1420.01,0.00082387,120]
[343035730,1732300247165,-500.0,0.00082387,120]
[343035731,1732300247174,-500.0,0.00082387,120]
[343035732,1732300247183,-2749.16,0.00082387,120]
[343035733,1732300247193,-500.0,0.00082387,120]
[343035734,1732300247202,-1636.59,0.00082387,120]
[343035735,1732300247212,-194.31,0.00082387,120]
[343035736,1732300247221,-360.08,0.00082387,120]
[343035737,1732300247230,-500.0,0.00082387,120]
[343035738,1732300247239,-644.84,0.00082387,120]
[343035739,1732300247249,-3475.96,0.00082387,120]
[343035740,1732300247261,-500.0,0.00082387,120]
[343035741,1732300247270,-500.0,0.00082387,7]
[343035742,1732300247280,-1609.7,0.00082387,120]
[343035743,1732300247289,-1247.45,0.00082387,120]
[343035744,1732300247298,-361.58724414,0.00082387,120]
[343035745,1732300247307,-500.0,0.00082387,120]
[343035746,1732300247317,-1335.46,0.00082387,120]
[343035747,1732300247326,-3631.48,0.00082387,120]
[343035748,1732300247337,-6598.49,0.00082387,120]
[343035749,1732300247346,-500.0,0.00082388,120]
[343035750,1732300247356,-500.0,0.00082388,120]
[343035751,1732300247366,-621.5928922,0.00082388,120]
[343035752,1732300247375,-500.0,0.00082388,120]
[343035753,1732300247384,-500.0,0.00082388,120]
[343035754,1732300247394,-500.0,0.00082388,120]
[343035755,1732300247403,-500.0,0.00082388,120]
[343035756,1732300247412,-500.0,0.00082388,120]
[343035757,1732300247421,-500.0,0.00082389,120]
[343035758,1732300247430,-500.0,0.00082389,120]
[343035759,1732300247439,-2258.62,0.00082389,120]
[343035760,1732300247448,-500.0,0.00082389,120]
[343035761,1732300247457,-2982.15,0.00082389,120]
[343035762,1732300247466,-500.0,0.00082389,120]
[343035763,1732300247475,-1138.42,0.00082389,120]
[343035764,1732300247484,-628.98,0.00082389,120]
[343035765,1732300247493,-500.0,0.00082399,120]
[343035766,1732300247502,-500.0,0.00082399,120]
[343035767,1732300247516,-500.0,0.00082399,120]
[343035768,1732300247526,-50000.0,0.000824,120]
[343035769,1732300247536,-301.153285,0.000824,120]
[343035770,1732300247545,-151.0,0.000824,120]
[343035771,1732300247554,-154.205945,0.000824,120]
[343035772,1732300247645,-433.48,0.00082441,60]
[343035773,1732300247655,-3475.96,0.00082488,120]
[343035774,1732300247664,-1247.45,0.00082488,120]
[343035775,1732300247673,-2702.93,0.00082489,120]
[343035776,1732300247682,-500.0,0.00082499,120]
[343035777,1732300247692,-2702.93,0.00082499,120]
[343035778,1732300247701,-500.0,0.00082499,120]
[343035779,1732300247710,-500.0,0.00082499,120]
[343035780,1732300247720,-500.0,0.00082499,120]
[343035781,1732300247729,-500.0,0.00082499,120]
[343035782,1732300247738,-500.0,0.00082499,120]
[343035783,1732300247747,-1080.99256544,0.00082711,120]
[343035784,1732300247759,-1010.32233644,0.00082711,120]
[343035785,1732300247768,-500.0,0.00082721,60]
[343035786,1732300247778,-500.0,0.00082978,120]
[343035787,1732300247787,-2062.11,0.00082978,120]
[343035788,1732300247796,-502.63087,0.00082978,120]
[343035789,1732300247806,-556.86,0.00082978,120]
[343035790,1732300247815,-433.13,0.00082978,120]
[343035791,1732300247824,-586.58,0.00082978,120]
[343035792,1732300247835,-500.0,0.00082978,120]
[343035793,1732300247845,-543.41,0.00082978,120]
[343035794,1732300247854,-500.0,0.00082978,120]
[343035795,1732300247864,-1856.73,0.00082978,120]
[343035796,1732300247874,-1196.07,0.00082978,120]
[343035797,1732300247884,-168.0,0.00082978,120]
[343035798,1732300247899,-500.0,0.00082978,120]
[343035799,1732300247909,-500.0,0.00082978,120]
[343035800,1732300247919,-500.0,0.00082978,120]
[343035801,1732300247928,-500.0,0.00082978,120]
[343035802,1732300247939,-199.72346034,0.00082978,120]
[343035803,1732300247948,-500.0,0.00082978,120]
[343035804,1732300247957,-500.0,0.00082978,120]
[343035805,1732300247967,-2145.04,0.00082978,120]
[343035806,1732300247977,-500.0,0.00082978,120]
[343035807,1732300247987,-916.84,0.00082978,120]
[343035808,1732300247996,-500.0,0.00082978,2]
[343035809,1732300248008,-500.0,0.00082978,120]
[343035810,1732300248018,-500.0,0.00082978,120]
[343035811,1732300248027,-1420.01,0.00082978,120]
[343035812,1732300248037,-500.0,0.00082978,120]
[343035813,1732300248047,-450.36656236,0.00082978,120]
[343035814,1732300248057,-2749.16,0.00082978,120]
[343035815,1732300248067,-500.0,0.00082978,120]
[343035816,1732300248078,-1636.59,0.00082978,120]
[343035817,1732300248088,-545.69,0.00082978,120]
[343035818,1732300248099,-151.0,0.00082978,120]
[343035819,1732300248110,-500.0,0.00082978,120]
[343035820,1732300248120,-151.0,0.00082978,120]
[343035821,1732300248131,-500.0,0.00082978,7]
[343035822,1732300248141,-1609.7,0.00082978,120]
[343035823,1732300248152,-154.855696,0.00082978,120]
[343035824,1732300248162,-500.0,0.00082978,120]
[343035825,1732300248173,-1335.46,0.00082978,120]
[343035826,1732300248185,-3631.48,0.00082978,120]
[343035827,1732300248195,-6598.49,0.00082978,120]
[343035828,1732300248205,-500.0,0.00082988,120]
[343035829,1732300248215,-500.0,0.00082988,120]
[343035830,1732300248225,-2258.62,0.00082988,120]
[343035831,1732300248235,-500.0,0.00082988,120]
[343035832,1732300248245,-2982.15,0.00082988,120]
[343035833,1732300248255,-237.076386,0.00082988,120]
[343035834,1732300248266,-151.0,0.00082988,120]
[343035835,1732300248276,-151.0,0.00082988,120]
[343035836,1732300248286,-151.0,0.00082988,120]
[343035837,1732300248296,-151.0,0.00082988,120]
[343035838,1732300248307,-151.0,0.00082988,120]
[343035839,1732300248317,-151.948977,0.00082988,120]
[343035840,1732300248327,-152.715101,0.00082988,120]